fUST/lending_fUST_20250912
["ID","MTS","AMOUNT","RATE_DAILY","PERIOD"]
[385026000,1757646643515,-480.0,0.00016545,2]
[385026002,1757646643524,-500.0,0.00016546,2]
[385026004,1757646643534,-867.25079442,0.00016618,2]
[385026006,1757646643543,-480.0,0.00016718,2]
[385026008,1757646643553,-646.8,0.0001672,2]
[385026010,1757646643562,-480.0,0.0001672,2]
[385026012,1757646643571,-480.0,0.0001672,2]
[385026014,1757646643580,-480.0,0.0001672,2]
[385026016,1757646643589,-480.0,0.0001672,2]
[385026018,1757646643598,-480.0,0.0001672,2]
[385026020,1757646643608,-2809.88,0.0001672,2]
[385026022,1757646643618,-480.0,0.00016721,2]
[385026024,1757646643627,-480.0,0.00016721,2]
[385026026,1757646643636,-480.0,0.00016721,2]
[385026028,1757646643645,-480.0,0.00016721,2]
[385026030,1757646643654,-1433.34,0.00016721,2]
[385026032,1757646643663,-459.71,0.00016721,2]
[385026034,1757646643672,-830.22,0.00016721,2]
[385026036,1757646643681,-480.0,0.00016819,2]
[385026038,1757646643690,-480.0,0.00016819,2]
[385026040,1757646643700,-480.0,0.00016819,2]
[385026042,1757646643709,-480.0,0.00016819,2]
[385026043,1757646643720,-500.0,0.0001682,2]
[385026045,1757646643729,-2000.0,0.00016908,2]
[385026047,1757646643738,-152.40059947,0.00016943,2]
[385026049,1757646643748,-480.0,0.00016992,2]
[385026051,1757646643757,-646.8,0.00016994,2]
[385026053,1757646643767,-480.0,0.00016994,2]
[385026055,1757646643776,-480.0,0.00016994,2]
[385026057,1757646643785,-480.0,0.00016994,2]
[385026059,1757646643795,-480.0,0.00016994,2]
[385026061,1757646643804,-227.88,0.00016994,2]
[385026063,1757646643813,-2809.88,0.00016994,2]
[385026065,1757646643822,-480.0,0.00016995,2]
[385026067,1757646643831,-501.19884971,0.00016995,2]
[385026069,1757646643840,-480.0,0.00016995,2]
[385026071,1757646643849,-480.0,0.00016995,2]
[385026073,1757646643858,-1433.34,0.00016995,2]
[385026075,1757646643867,-830.22,0.00016995,2]
[385026077,1757646643877,-296.00219998,0.00017093,2]
[385026079,1757646643886,-480.0,0.00017093,2]
[385026081,1757646643898,-480.0,0.00017093,2]
[385026083,1757646643907,-500.0,0.00017094,2]
[385026085,1757646643916,-160.0,0.00017158,2]
[385026086,1757646643926,-480.0,0.00017266,2]
[385026088,1757646643935,-646.8,0.00017268,2]
[385026090,1757646643944,-480.0,0.00017268,2]
[385026100,1757646643953,-480.0,0.00017268,2]
[385026101,1757646644054,-480.0,0.00017268,2]
[385026102,1757646644063,-480.0,0.00017268,2]
[385026103,1757646644072,-2809.88,0.00017268,2]
[385026104,1757646644081,-587.0,0.00017268,2]
[385026105,1757646644091,-578.44950272,0.00017269,2]
[385026106,1757646644100,-382.97,0.00017269,2]
[385026107,1757646644109,-480.0,0.00017269,2]
[385026108,1757646644118,-1433.34,0.00017269,2]
[385026109,1757646644127,-830.22,0.00017269,2]
[385026110,1757646644136,-480.0,0.00017367,2]
[385026111,1757646644146,-480.0,0.00017367,2]
[385026112,1757646644159,-500.0,0.00017368,2]
[385026113,1757646644168,-327.0,0.00017423,2]
[385026114,1757646644177,-2500.0,0.00017456,2]
[385026115,1757646644186,-152.40059947,0.00017467,2]
[385026116,1757646644196,-480.0,0.0001754,2]
[385026117,1757646644205,-646.8,0.00017542,2]
[385026118,1757646644214,-480.0,0.00017542,2]
[385026119,1757646644224,-480.0,0.00017542,2]
[385026120,1757646644234,-480.0,0.00017542,2]
[385026121,1757646644244,-480.0,0.00017542,2]
[385026122,1757646644254,-2809.88,0.00017542,2]
[385026123,1757646644275,-467.51,0.00017543,2]
[385026124,1757646644285,-1433.34,0.00017543,2]
[385026125,1757646644295,-830.22,0.00017543,2]
[385026126,1757646644304,-409.0,0.00017592,2]
[385026128,1757646644313,-485.82,0.00017641,2]
[385026130,1757646644322,-480.0,0.00017641,2]
[385026132,1757646644331,-385.36645239,0.00017642,2]
[385026134,1757646644340,-867.25079442,0.00017664,2]
[385026136,1757646644349,-260.0,0.00017706,2]
[385026138,1757646644360,-239.2,0.00017814,2]
[385026140,1757646644368,-646.8,0.00017816,2]
[385026142,1757646644377,-480.0,0.00017816,2]
[385026144,1757646644386,-480.0,0.00017816,2]
[385026145,1757646644396,-528.96,0.00017816,2]
[385026147,1757646644405,-480.0,0.00017816,2]
[385026149,1757646644414,-2809.88,0.00017816,2]
[385026151,1757646644424,-1433.34,0.00017817,2]
[385026153,1757646644433,-830.22,0.00017817,2]
[385026155,1757646644443,-209.83,0.00017915,2]
[385026157,1757646644452,-864.0,0.00017932,2]
[385026159,1757646644461,-3000.0,0.00018004,2]
[385026161,1757646644471,-152.40059948,0.00018008,2]
[385026163,1757646644480,-646.8,0.0001809,2]
[385026165,1757646644489,-480.0,0.0001809,2]
[385026167,1757646644498,-480.0,0.0001809,2]
[385026169,1757646644507,-480.0,0.0001809,2]
[385026171,1757646644516,-2809.88,0.0001809,2]
[385026173,1757646644525,-1433.34,0.00018091,2]
[385026175,1757646644534,-830.22,0.00018091,2]
[385026177,1757646644543,-360.0,0.00018254,2]
[385026179,1757646644552,-646.8,0.00018364,2]
[385026181,1757646644562,-480.0,0.00018364,2]
[385026183,1757646644571,-480.0,0.00018364,2]
[385026185,1757646644580,-480.0,0.00018364,2]
[385026187,1757646644589,-2809.88,0.00018364,2]
[385026189,1757646644597,-1433.34,0.00018365,2]
[385026191,1757646644607,-830.22,0.00018365,2]
[385026193,1757646644616,-180.569644,0.00018493,2]
[385026195,1757646644625,-420.56363564,0.00018552,2]
[385026197,1757646644634,-152.40059947,0.00018565,2]
[385026199,1757646644643,-646.8,0.00018638,2]
[385026201,1757646644653,-480.0,0.00018638,2]
[385026202,1757646644662,-480.0,0.00018638,2]
[385026204,1757646644671,-480.0,0.00018638,2]
[385026206,1757646644680,-2809.88,0.00018638,2]
[385026207,1757646644689,-1433.34,0.00018639,2]
[385026209,1757646644698,-830.22,0.00018639,2]
[385026211,1757646644708,-867.25079442,0.00018709,2]
[385026213,1757646644717,-460.0,0.00018802,2]
[385026215,1757646644726,-285371.29065236,0.00018807,2]
[385026217,1757646644735,-151.0,0.00018807,2]
[385026219,1757646644744,-151.0,0.00018807,2]
[385026221,1757646644753,-151.0,0.00018807,2]
[385026223,1757646644762,-151.0,0.00018807,2]
[385026225,1757646644771,-151.0,0.00018807,2]
[385026226,1757646644780,-161.051459,0.00018807,2]
[385026228,1757646644789,-151.0,0.00018807,2]
[385026230,1757646644798,-151.0,0.00018807,2]
[385026232,1757646644807,-153.532687,0.00018807,2]
[385026234,1757646644817,-151.0,0.00018807,2]
[385026236,1757646644826,-151.0,0.00018807,2]
[385026238,1757646644835,-151.0,0.00018807,2]
[385026240,1757646644843,-151.0,0.00018807,2]
[385026242,1757646644852,-270.188107,0.00018807,2]
[385026244,1757646644861,-151.0,0.00018807,2]
[385026246,1757646644870,-151.0,0.00018807,2]
[385026248,1757646644880,-151.0,0.00018807,2]
[385026250,1757646644889,-151.0,0.00018809,2]
[385026252,1757646644899,-151.0,0.00018809,2]
[385026253,1757646644908,-151.945491,0.00018809,2]
[385026255,1757646644917,-151.0,0.00018809,2]
[385026257,1757646644927,-151.0,0.00018809,2]
[385026259,1757646644936,-152.755332,0.00018809,2]
[385026261,1757646644946,-153.381209,0.00018809,2]
[385026263,1757646644955,-151.0,0.00018809,2]
[385026265,1757646644964,-151.0,0.00018809,2]
[385026267,1757646644974,-151.0,0.00018809,2]
[385026269,1757646644983,-151.0,0.00018809,2]
[385026271,1757646644993,-151.0,0.00018809,2]
[385026273,1757646645002,-151.0,0.00018809,2]
[385026275,1757646645011,-151.0,0.00018809,2]
[385026277,1757646645020,-152.755382,0.00018809,2]
[385026279,1757646645029,-151.0,0.00018809,2]
[385026281,1757646645038,-151.0,0.00018809,2]
[385026283,1757646645048,-151.0,0.00018809,2]
[385026285,1757646645058,-154.26924,0.00018809,2]
[385026287,1757646645068,-151.0,0.00018809,2]
[385026289,1757646645077,-151.0,0.00018809,2]
[385026290,1757646645087,-151.0,0.00018809,2]
[385026292,1757646645097,-151.0,0.00018809,2]
[385026294,1757646645106,-151.0,0.00018809,2]
[385026296,1757646645115,-151.0,0.00018809,2]
[385026298,1757646645124,-154.057419,0.00018809,2]
[385026300,1757646645133,-154.057419,0.00018809,2]
[385026302,1757646645142,-154.057419,0.00018809,2]
[385026304,1757646645155,-154.057419,0.00018809,2]
[385026306,1757646645168,-151.0,0.00018809,2]
[385026308,1757646645180,-164.02942816,0.00018809,2]
[385026310,1757646645199,-154.23158345,0.00018809,2]
[385026311,1757646645209,-500.0,0.00018809,2]
[385026313,1757646645218,-158.93114019,0.00018809,2]
[385026315,1757646645227,-256.98994026,0.00018809,2]
[385026317,1757646645237,-154.57863201,0.00018809,2]
[385026319,1757646645245,-18603.8837,0.00018809,2]
[385026321,1757646645255,-532.18299788,0.00018809,2]
[385026323,1757646645264,-151.19977967,0.00018809,2]
[385026325,1757646645273,-513.85864079,0.00018809,2]
[385026327,1757646645282,-151.3661364,0.00018809,2]
[385026329,1757646645291,-339.44485625,0.00018837,2]
[385026330,1757646645301,-823.0,0.00018911,2]
[385026332,1757646645310,-646.8,0.00018912,2]
[385026334,1757646645320,-480.0,0.00018912,2]
[385026336,1757646645330,-480.0,0.00018912,2]
[385026338,1757646645339,-480.0,0.00018912,2]
[385026340,1757646645348,-2809.88,0.00018912,2]
[385026342,1757646645358,-1433.34,0.00018913,2]
[385026344,1757646645367,-830.22,0.00018913,2]
[385026346,1757646645376,-151.0,0.00019012,2]
[385026348,1757646645385,-151.0,0.00019012,2]
[385026350,1757646645395,-646.8,0.00019186,2]
[385026352,1757646645404,-563.65,0.00019186,2]
[385026354,1757646645415,-563.16,0.00019186,2]
[385026356,1757646645424,-480.0,0.00019186,2]
[385026358,1757646645434,-2809.88,0.00019186,2]
[385026359,1757646645443,-1433.34,0.00019187,2]
[385026361,1757646645454,-830.22,0.00019187,2]
[385026363,1757646645463,-560.0,0.0001935,2]
[385026365,1757646645472,-14812.36988539,0.00019357,2]
[385026367,1757646645481,-646.8,0.0001946,2]
[385026369,1757646645490,-480.0,0.0001946,2]
[385026371,1757646645499,-2809.88,0.0001946,2]
[385026373,1757646645508,-1433.34,0.00019461,2]
[385026375,1757646645517,-830.22,0.00019461,2]
[385026377,1757646645527,-7663.11935178,0.00019464,2]
[385026379,1757646645536,-173.572,0.00019639,2]
[385026381,1757646645547,-1000.0,0.00019725,20]
[385026382,1757646645556,-646.8,0.00019734,2]
[385026384,1757646645565,-480.0,0.00019734,2]
[385026386,1757646645575,-2809.88,0.00019734,2]
[385026388,1757646645583,-1433.34,0.00019735,2]
[385026390,1757646645593,-830.22,0.00019735,2]
[385026392,1757646645603,-402.47984193,0.00019898,2]
[385026394,1757646645613,-8007.2461588,0.000199,2]
[385026396,1757646645622,-646.8,0.00020008,2]
[385026397,1757646645631,-480.0,0.00020008,2]
[385026399,1757646645641,-2809.88,0.00020008,2]
[385026401,1757646645650,-1433.34,0.00020009,2]
[385026403,1757646645659,-830.22,0.00020009,2]
[385026405,1757646645668,-577.047817,0.00020187,2]
[385026407,1757646645677,-646.8,0.00020282,2]
[385026409,1757646645687,-480.0,0.00020282,2]
[385026411,1757646645696,-2809.88,0.00020282,2]
[385026413,1757646645705,-1433.34,0.00020283,2]
[385026415,1757646645714,-830.22,0.00020283,2]
[385026417,1757646645723,-8007.24615862,0.00020299,2]
[385026419,1757646645732,-217.7145751,0.00020359,2]
[385026421,1757646645741,-233.13074058,0.00020359,2]
[385026423,1757646645750,-847.0429734,0.00020359,2]
[385026425,1757646645760,-160.0,0.00020359,2]
[385026426,1757646645769,-646.8,0.00020556,2]
[385026428,1757646645778,-371.74,0.00020556,2]
[385026430,1757646645787,-2809.88,0.00020556,2]
[385026432,1757646645796,-1433.34,0.00020557,2]
[385026434,1757646645805,-830.22,0.00020557,2]
[385026436,1757646645814,-409.0,0.00020592,2]
[385026438,1757646645823,-151.0,0.000206,4]
[385026440,1757646645832,-8007.24615862,0.00020699,2]
[385026442,1757646645840,-1152.0,0.00020709,2]
[385026444,1757646645849,-2100.0,0.00020712,2]
[385026446,1757646645858,-168.0,0.00020784,2]
[385026447,1757646645867,-646.9,0.0002083,2]
[385026449,1757646645876,-2810.05137357,0.0002083,2]
[385026451,1757646645886,-1433.53720723,0.00020831,2]
[385026453,1757646645895,-830.3,0.00020831,2]
[385026455,1757646645904,-8007.24615862,0.00021098,2]
[385026457,1757646645913,-168.0,0.00021144,2]
[385026459,1757646645922,-151.0,0.000214,3]
[385026461,1757646645931,-8007.24615862,0.00021498,2]
[385026463,1757646645940,-1000.0,0.00021698,20]
[385026465,1757646645949,-244.0,0.00021698,20]
[385026467,1757646645960,-10000.0,0.00021772,2]
[385026469,1757646645971,-2100.0,0.00021808,2]
[385026471,1757646645979,-8007.24615862,0.00021897,2]
[385026473,1757646645988,-153.0,0.00021918,2]
[385026475,1757646645997,-153.0,0.00021918,2]
[385026477,1757646646006,-153.0,0.00021918,2]
[385026478,1757646646015,-153.0,0.00021918,2]
[385026480,1757646646024,-153.0,0.00021918,2]
[385026482,1757646646034,-153.0,0.00021918,2]
[385026484,1757646646043,-153.0,0.00021918,2]
[385026486,1757646646052,-153.0,0.00021918,2]
[385026488,1757646646061,-153.0,0.00021918,2]
[385026490,1757646646070,-153.0,0.00021918,2]
[385026492,1757646646079,-153.0,0.00021918,2]
[385026494,1757646646088,-153.0,0.00021918,2]
[385026495,1757646646098,-153.0,0.00021918,2]
[385026497,1757646646108,-153.0,0.00021918,2]
[385026499,1757646646118,-180.569644,0.00021918,2]
[385026501,1757646646127,-153.0,0.00021918,2]
[385026503,1757646646137,-157.0,0.00021918,2]
[385026505,1757646646146,-500.0,0.00021918,2]
[385026507,1757646646159,-157.0,0.00021918,2]
[385026509,1757646646168,-213.24,0.00021918,2]
[385026511,1757646646177,-151.0,0.00021941,7]
[385026513,1757646646186,-151.0,0.00021941,7]
[385026515,1757646646195,-210.305244,0.00021941,7]
[385026517,1757646646205,-151.0,0.00021941,7]
[385026519,1757646646214,-469.67177492,0.00021941,2]
[385026530,1757646646314,-40371.67440492,0.00021941,2]
[385026548,1757646646480,-34857.97584156,0.00021941,2]
[385026550,1757646646492,-5732.48512808,0.00021941,2]
[385026552,1757646646502,-10748.62925795,0.00021941,2]
[385026554,1757646646513,-5826.97131694,0.00021941,2]
[385030474,1757646934152,301.056754,0.00013699,2]
[385030475,1757646989040,207.049382,0.0001443,10]
[385030476,1757647030636,583.025829,0.00013699,2]
[385030499,1757647539050,548.61842022,0.00014229,2]
[385030552,1757647632016,283.84391279,0.000142,2]
[385030609,1757647715646,495.3678928,0.00028447,120]
[385030613,1757647722522,6272.8797582,0.0001,2]
[385030614,1757647722543,2822.5195699,0.0001,2]
[385030615,1757647722852,1726.5855053,0.0001,2]
[385030645,1757647779752,5450.9049248,0.00013329,2]
[385030646,1757647779774,4549.0950752,0.00013329,2]
[385030648,1757647819323,480.04111771,0.00014228,2]
[385030664,1757647831844,-255.18335104,0.00014327,2]
[385030665,1757647831854,-331.15889146,0.00014327,2]
[385030682,1757647837757,-168.84110854,0.00014327,2]
[385030683,1757647837766,-646.00821362,0.00014327,2]
[385030684,1757647837775,-300.0,0.00014327,2]
[385030685,1757647837785,-1200.0,0.00014327,2]
[385030686,1757647837794,-47175.1869663,0.00014328,2]
[385030687,1757647837803,-480.0,0.00014328,2]
[385030689,1757647837813,-480.0,0.00014328,2]
[385030690,1757647837822,-480.0,0.00014328,2]
[385030691,1757647837834,-481.87174669,0.00014328,2]
[385030692,1757647837843,-480.0,0.00014328,2]
[385030693,1757647837852,-480.0,0.00014328,2]
[385030694,1757647837861,-480.0,0.00014328,2]
[385030695,1757647837870,-480.0,0.00014328,2]
[385030696,1757647837879,-480.0,0.00014328,2]
[385030697,1757647837888,-480.0,0.00014328,2]
[385030698,1757647837897,-485.04289125,0.00014328,2]
[385030699,1757647837906,-488.5618906,0.00014328,2]
[385030700,1757647837915,-482.56029268,0.00014328,2]
[385030701,1757647837923,-480.0,0.00014328,2]
[385030702,1757647837932,-480.0,0.00014328,2]
[385030703,1757647837941,-490.86143636,0.00014328,2]
[385030704,1757647837950,-480.0,0.00014328,2]
[385030705,1757647837959,-487.41515589,0.00014328,2]
[385030706,1757647837968,-752.5,0.00014328,2]
[385030707,1757647837977,-245.12626849,0.00014328,2]
[385030708,1757647837986,-217.66619163,0.00014328,2]
[385030709,1757647837995,-480.0,0.00014328,2]
[385030710,1757647838004,-480.0,0.00014329,2]
[385030711,1757647838013,-485.23082794,0.00014329,2]
[385030712,1757647838023,-480.0,0.00014329,2]
[385030713,1757647838033,-480.0,0.00014329,2]
[385030714,1757647838042,-480.0,0.00014329,2]
[385030715,1757647838053,-416.56221726,0.00014329,2]
[385030716,1757647838063,-480.0,0.00014329,2]
[385030717,1757647838072,-480.0,0.00014329,2]
[385030718,1757647838081,-480.0,0.00014329,2]
[385030719,1757647838090,-480.0,0.00014329,2]
[385030720,1757647838099,-172.15728703,0.00014329,2]
[385030721,1757647838108,-480.0,0.00014329,2]
[385030722,1757647838118,-480.0,0.00014329,2]
[385030723,1757647838127,-480.0,0.00014329,2]
[385030724,1757647838136,-480.0,0.00014329,2]
[385030725,1757647838146,-480.0,0.00014329,2]
[385030726,1757647838155,-480.0,0.00014329,2]
[385030727,1757647838165,-480.0,0.00014329,2]
[385030728,1757647838174,-480.0,0.00014329,2]
[385030729,1757647838183,-480.0,0.00014329,2]
[385030730,1757647838193,-480.0,0.00014329,2]
[385030731,1757647838202,-480.0,0.00014329,2]
[385030732,1757647838211,-480.0,0.00014329,2]
[385030733,1757647838221,-480.0,0.00014329,2]
[385030734,1757647838230,-480.0,0.00014329,2]
[385030735,1757647838239,-480.0,0.00014329,2]
[385030736,1757647838248,-505.92431692,0.00014329,2]
[385030737,1757647838258,-480.0,0.00014329,2]
[385030738,1757647838267,-480.0,0.00014329,2]
[385030739,1757647838276,-480.0,0.00014329,2]
[385030740,1757647838285,-480.0,0.00014329,2]
[385030741,1757647838294,-480.0,0.00014329,2]
[385030742,1757647838303,-480.0,0.00014329,2]
[385030743,1757647838312,-480.0,0.00014329,2]
[385030744,1757647838322,-480.0,0.00014329,2]
[385030745,1757647838331,-480.0,0.00014329,2]
[385030746,1757647838339,-480.0,0.00014329,2]
[385030747,1757647838348,-480.0,0.00014329,2]
[385030748,1757647838357,-480.0,0.00014329,2]
[385030749,1757647838366,-483.17770178,0.00014329,2]
[385030750,1757647838375,-483.84924069,0.00014329,2]
[385030751,1757647838384,-480.0,0.00014329,2]
[385030752,1757647838393,-480.0,0.00014329,2]
[385030753,1757647838402,-480.0,0.00014329,2]
[385030754,1757647838411,-483.86078602,0.00014329,2]
[385030755,1757647838420,-480.0,0.00014329,2]
[385030756,1757647838429,-488.53126977,0.00014329,2]
[385030757,1757647838438,-480.0,0.00014329,2]
[385030758,1757647838447,-480.0,0.00014329,2]
[385030759,1757647838456,-480.0,0.00014329,2]
[385030760,1757647838465,-480.0,0.00014329,2]
[385030761,1757647838474,-272.38772672,0.00014329,2]
[385030762,1757647838483,-490.39644181,0.00014329,2]
[385030763,1757647838492,-480.0,0.00014329,2]
[385030764,1757647838501,-480.0,0.00014329,2]
[385030765,1757647838510,-480.0,0.00014329,2]
[385030766,1757647838519,-485.2206668,0.00014329,2]
[385030767,1757647838528,-480.0,0.00014329,2]
[385030768,1757647838537,-480.0,0.00014329,2]
[385030769,1757647838546,-480.0,0.00014329,2]
[385030770,1757647838555,-486.32349585,0.00014329,2]
[385030771,1757647838565,-1575.86,0.00014329,2]
[385030772,1757647838574,-480.0,0.00014329,2]
[385030773,1757647838583,-486.71256684,0.00014329,2]
[385030774,1757647838593,-492.54342896,0.00014329,2]
[385030775,1757647838601,-480.0,0.00014329,2]
[385030776,1757647838610,-480.0,0.00014329,2]
[385030777,1757647838619,-480.0,0.00014329,2]
[385030778,1757647838628,-480.0,0.00014329,2]
[385030779,1757647838637,-480.0,0.00014329,2]
[385030780,1757647838646,-580.64045462,0.00014329,2]
[385030781,1757647838655,-485.54378534,0.00014329,2]
[385030782,1757647838664,-495.81771429,0.00014329,2]
[385030783,1757647838673,-480.0,0.00014329,2]
[385030784,1757647838682,-549.77072652,0.00014329,2]
[385030785,1757647838691,-480.0,0.00014329,2]
[385030786,1757647838700,-480.0,0.00014329,2]
[385030787,1757647838709,-480.0,0.00014329,2]
[385030788,1757647838722,-480.0,0.00014329,2]
[385030789,1757647838732,-487.62736065,0.00014329,2]
[385030790,1757647838741,-480.0,0.00014329,2]
[385030791,1757647838751,-480.0,0.00014329,2]
[385030792,1757647838761,-480.0,0.00014329,2]
[385030793,1757647838770,-500.00638006,0.00014329,2]
[385030794,1757647838779,-2147.77265345,0.00014373,2]
[385030795,1757647838789,-6602.81290665,0.00014373,2]
[385030796,1757647838799,-480.0,0.00014428,2]
[385030797,1757647838808,-480.0,0.00014428,2]
[385030798,1757647838817,-480.0,0.00014428,2]
[385030799,1757647838827,-480.0,0.00014428,2]
[385030800,1757647838836,-899.72,0.00014428,2]
[385030801,1757647838845,-480.0,0.00014429,2]
[385030802,1757647838854,-541.36133531,0.00014429,2]
[385030803,1757647838863,-484.67587361,0.00014429,2]
[385030804,1757647838872,-480.0,0.00014429,2]
[385030805,1757647838881,-480.0,0.00014429,2]
[385030806,1757647838890,-486.86365684,0.00014429,2]
[385030807,1757647838899,-480.0,0.00014429,2]
[385030808,1757647838908,-485.51451885,0.00014429,2]
[385030809,1757647838919,-480.0,0.00014429,2]
[385030810,1757647838928,-482.77596874,0.00014429,2]
[385030811,1757647838937,-483.01800159,0.00014429,2]
[385030812,1757647838947,-484.13609026,0.00014429,2]
[385030813,1757647838955,-484.86108773,0.00014429,2]
[385030814,1757647838965,-482.22297251,0.00014429,2]
[385030815,1757647838974,-483.46028147,0.00014429,2]
[385030816,1757647838983,-495.28999692,0.00014429,2]
[385030817,1757647838992,-488.79934972,0.00014429,2]
[385030818,1757647839000,-482.77036129,0.00014429,2]
[385030819,1757647839009,-480.0,0.00014429,2]
[385030820,1757647839019,-488.66203036,0.00014429,2]
[385030821,1757647839028,-494.12786555,0.00014429,2]
[385030822,1757647839037,-482.66324529,0.00014429,2]
[385030823,1757647839046,-480.0,0.00014429,2]
[385030824,1757647839055,-480.0,0.00014429,2]
[385030825,1757647839066,-490.32040738,0.00014429,2]
[385030826,1757647839075,-488.10389265,0.00014429,2]
[385030827,1757647839084,-496.87292785,0.00014429,2]
[385030828,1757647839094,-206.76830095,0.00014429,2]
[385030829,1757647839103,-480.0,0.00014429,2]
[385030830,1757647839113,-263.33274518,0.00014429,2]
[385030831,1757647839121,-559.49320939,0.00014429,2]
[385030832,1757647839131,-244.42657025,0.00014429,2]
[385030833,1757647839140,-480.0,0.00014429,2]
[385030834,1757647839150,-480.0,0.00014429,2]
[385030835,1757647839159,-482.15777201,0.00014429,2]
[385030836,1757647839169,-480.0,0.00014429,2]
[385030837,1757647839179,-489.78538899,0.00014429,2]
[385030838,1757647839188,-480.0,0.00014429,2]
[385030839,1757647839197,-480.0,0.00014429,2]
[385030840,1757647839206,-482.02173192,0.00014429,2]
[385030841,1757647839215,-484.29398583,0.00014429,2]
[385030842,1757647839224,-485.83696625,0.00014429,2]
[385030843,1757647839234,-480.0,0.00014429,2]
[385030844,1757647839244,-1006.95736075,0.00014429,2]
[385030845,1757647839253,-483.18488262,0.00014429,2]
[385030846,1757647839263,-480.0,0.00014429,2]
[385030847,1757647839272,-480.0,0.00014429,2]
[385030848,1757647839282,-481.975807,0.00014429,2]
[385030850,1757647839291,-483.13529642,0.00014429,2]
[385030852,1757647839301,-482.54393775,0.00014429,2]
[385030854,1757647839310,-480.0,0.00014429,2]
[385030856,1757647839319,-480.0,0.00014429,2]
[385030858,1757647839330,-483.93847967,0.00014429,2]
[385030860,1757647839339,-568.16866517,0.00014429,2]
[385030862,1757647839349,-480.0,0.00014429,2]
[385030863,1757647839358,-484.71778429,0.00014429,2]
[385030865,1757647839367,-483.38976661,0.00014429,2]
[385030866,1757647839377,-488.58350725,0.00014429,2]
[385030868,1757647839387,-480.0,0.00014429,2]
[385030870,1757647839396,-480.0,0.00014429,2]
[385030871,1757647839405,-482.80232532,0.00014429,2]
[385030873,1757647839414,-480.0,0.00014429,2]
[385030874,1757647839423,-483.17617044,0.00014429,2]
[385030876,1757647839433,-480.0,0.00014429,2]
[385030878,1757647839443,-480.0,0.00014429,2]
[385030879,1757647839452,-583.19102658,0.00014429,2]
[385030882,1757647839461,-480.0,0.00014429,2]
[385030884,1757647839471,-486.3568742,0.00014429,2]
[385030887,1757647839482,-480.0,0.00014429,2]
[385030890,1757647839491,-352.12125989,0.00014429,2]
[385030892,1757647839501,-480.0,0.00014429,2]
[385030895,1757647839510,-480.0,0.00014429,2]
[385030897,1757647839519,-481.78436156,0.00014429,2]
[385030900,1757647839527,-480.0,0.00014429,2]
[385030903,1757647839537,-157.11565503,0.00014429,2]
[385030905,1757647839546,-483.51871798,0.00014429,2]
[385030908,1757647839555,-480.0,0.00014429,2]
[385030911,1757647839564,-482.08986602,0.00014429,2]
[385030913,1757647839573,-483.18616691,0.00014429,2]
[385030916,1757647839583,-480.0,0.00014429,2]
[385030919,1757647839592,-481.88380941,0.00014429,2]
[385030921,1757647839601,-480.0,0.00014429,2]
[385030924,1757647839610,-485.21,0.00014429,2]
[385030926,1757647839622,-482.75444685,0.00014429,2]
[385030929,1757647839631,-480.0,0.00014429,2]